bitfinex/quotes_ETHUSD_20260103
["timestamp","ask_amount","ask_price","bid_price","bid_amount"]
[1767418933826,0.001,3107.1,3106.8,2.37080772]
[1767418934739,0.001,3107.1,3106.5,2.37180772]
[1767418934945,0.001,3107.1,3106.6,2.37180772]
[1767418935141,0.001,3107.1,3106.7,2.37180772]
[1767418936066,0.001,3107.1,3106.7,5.59065668]
[1767418937767,0.001,3107.1,3106.7,5.59058639]
[1767418937966,0.001,3107.1,3106.8,2.37180772]
[1767418940074,0.001,3107.1,3106.8,5.59054953]
[1767418940262,0.001,3107.1,3106.9,2.37180772]
[1767418942666,0.001,3107.1,3106.9,5.59044605]
[1767418942851,0.001,3107.1,3107.0,2.37080772]
[1767418943969,0.001,3107.7,3107.1,2.37180772]
[1767418944176,0.001,3107.7,3106.9,6.4372807]
[1767418944177,0.001,3107.7,3107.2,2.60898849]
[1767418944543,2.35554223,3107.7,3107.2,0.23718077]
[1767418944770,2.35554223,3107.7,3107.0,3.21851312]
[1767418944950,2.35554223,3107.7,3107.1,3.21843155]
[1767418946053,2.35554223,3107.7,3107.1,2.37180772]
[1767418946271,2.35554223,3107.7,3107.1,5.59017495]
[1767418952949,0.001,3107.7,3107.1,5.59017495]
[1767418953152,0.001,3107.7,3107.2,3.29553281]
[1767418953476,0.001,3107.7,3107.3,2.41466296]
[1767418953681,0.001,3107.8,3107.4,2.41466296]
[1767418954261,0.001,3107.8,3107.5,2.41366296]
[1767418959088,0.001,3107.8,3107.6,2.41466296]
[1767418959274,0.001,3107.9,3107.7,2.97793135]
[1767418962193,0.001,3107.9,3107.7,0.56326839]
[1767418962395,0.001,3107.9,3107.5,2.41466296]
[1767418962761,0.001,3107.9,3107.5,5.63262291]
[1767418963694,0.001,3107.9,3107.6,3.21790782]
[1767418964990,0.001,3108.3,3107.7,2.41466296]
[1767418966270,0.001,3107.9,3107.8,2.41466296]
[1767418966867,0.001,3107.9,3107.5,5.63263688]
[1767418967066,0.001,3107.9,3107.6,0.56326369]
[1767418967266,2.40524094,3108.2,3107.9,0.999]
[1767418967974,2.40524094,3108.0,3107.3,2.41466296]
[1767418968174,3.21760674,3107.9,3107.3,2.41466296]
[1767418968685,3.26922544,3107.9,3107.4,2.41466296]
[1767418968986,0.0516187,3107.9,3107.4,2.41466296]
[1767418970899,3.26925265,3107.9,3107.4,2.41466296]
[1767418973392,3.26925265,3107.9,3107.4,2.41666296]
[1767418973597,3.27025265,3107.9,3107.4,2.41666296]
[1767418980605,2.29458096,3107.7,3107.2,0.844]
[1767418980895,5.00706578,3107.6,3107.0,0.002]
[1767418981095,5.00706578,3107.6,3107.0,0.00080601]
[1767418981305,2.29458096,3107.6,3107.0,5.62571737]
[1767418981672,2.29458096,3107.6,3107.0,2.40720296]
[1767418982302,2.29458096,3107.6,3107.0,5.62573754]
[1767418986002,5.51252089,3107.6,3107.0,2.40720296]
[1767418986875,2.29458096,3107.6,3107.0,2.40720296]
[1767418987096,2.29458096,3107.6,3107.0,5.62572596]
[1767418988802,2.29458096,3107.6,3107.0,2.40720296]
[1767418988985,2.29458096,3107.6,3107.0,5.6257375]
[1767418993407,5.51251899,3107.6,3107.0,2.40720296]
[1767418993707,2.29458096,3107.6,3107.0,5.62574165]
[1767418998411,5.51229123,3107.8,3107.0,5.62574165]
[1767418998705,6.38538978,3107.8,3107.0,5.62574165]
[1767418998889,0.001,3107.6,3107.0,5.62574165]
[1767418999211,0.001,3107.6,3107.1,2.40639695]
[1767418999707,0.001,3107.6,3107.2,0.03218331]
[1767418999910,0.001,3107.6,3107.1,5.62481508]
[1767419000080,0.001,3107.6,3107.1,6.50924126]
[1767419000985,0.001,3107.6,3107.1,3.29082313]
[1767419001194,0.001,3107.6,3107.1,2.40639695]
[1767419003414,0.001,3107.6,3107.0,0.00080601]
[1767419005222,2.29558096,3107.6,3107.0,0.00080601]
[1767419010634,5.51350218,3107.6,3107.0,0.00080601]
[1767419013308,2.29558096,3107.6,3107.0,0.00080601]
[1767419013509,2.29558096,3107.6,3107.1,0.56258453]
[1767419013924,2.29558096,3107.6,3107.0,0.00080601]
[1767419014416,2.36849058,3107.5,3107.0,0.00080601]
[1767419016044,5.58653245,3107.5,3107.0,0.00080601]
[1767419016840,2.36849058,3107.5,3107.0,0.00080601]
[1767419020037,5.58653462,3107.5,3107.0,0.00080601]
[1767419020741,2.36849058,3107.5,3107.0,0.00080601]
[1767419024939,5.58651164,3107.5,3107.0,0.00080601]
[1767419025143,2.36849058,3107.4,3107.0,0.00080601]
[1767419027129,5.58661508,3107.4,3107.0,0.00080601]
[1767419027743,2.36849058,3107.3,3107.0,0.00080601]
[1767419032254,5.58674816,3107.3,3107.0,0.00080601]
[1767419033322,3.21825758,3107.3,3107.0,0.00080601]
[1767419033522,3.21825758,3107.3,3106.3,2.35654569]
[1767419033523,2.36849058,3107.2,3106.3,2.35654569]
[1767419033727,2.36849058,3107.2,3106.4,5.57563489]
[1767419033928,5.58692363,3107.2,3107.0,0.001]
[1767419034328,2.36849058,3107.1,3106.4,5.57563489]
[1767419034528,2.36849058,3107.1,3106.4,6.53953424]
[1767419035130,2.36849058,3107.1,3106.4,2.35654569]
[1767419036936,5.5869698,3107.1,3106.4,5.57568119]
[1767419037775,3.21847922,3107.1,3106.5,2.35654569]
[1767419040567,6.43666322,3107.2,3106.5,2.35654569]
[1767419041571,6.43666322,3107.2,3106.1,0.002]
[1767419041572,2.35751305,3106.8,3106.1,0.002]
[1767419042165,2.35751305,3106.8,3105.7,0.03419886]
[1767419042344,2.35751305,3106.5,3105.7,2.37116054]
[1767419042668,3.21909015,3106.5,3105.8,2.36916054]
[1767419042840,3.21909015,3106.5,3105.9,2.36916054]
[1767419044272,3.21896165,3106.6,3106.0,2.36916054]
[1767419046662,5.5764747,3106.6,3106.0,2.36916054]
[1767419049194,3.21889554,3106.7,3106.1,2.36916054]
[1767419050247,3.21879246,3106.8,3106.1,2.36916054]
[1767419050648,3.21879246,3106.8,3106.1,5.58861182]
[1767419051070,3.21879246,3106.8,3106.2,2.36916054]
[1767419052378,3.21864237,3106.9,3106.3,2.36916054]
[1767419053772,3.21846069,3107.1,3106.4,2.36916054]
[1767419055588,3.21846069,3107.1,3106.4,5.58829012]
[1767419055982,3.21836154,3107.2,3106.5,2.36916054]
[1767419057462,0.001,3107.1,3106.5,2.36916054]
[1767419060686,0.001,3107.1,3106.6,2.36916054]
[1767419064366,0.001,3107.1,3106.7,2.36916054]
[1767419064777,0.001,3107.1,3106.7,2.92797105]
[1767419066097,0.001,3107.1,3106.8,2.36916054]
[1767419067799,0.001,3107.1,3106.9,2.36916054]
[1767419068095,0.001,3107.3,3106.9,2.36916054]
[1767419070110,0.001,3107.3,3106.9,5.58773337]
[1767419070398,0.001,3107.3,3106.9,6.60876979]
[1767419073506,0.001,3107.3,3106.9,3.39019696]
[1767419074675,0.001,3107.3,3106.9,1.02103642]
[1767419075985,2.49929567,3107.3,3106.7,4.62262203]
[1767419076377,2.49929567,3107.3,3106.7,7.07151225]
[1767419076578,2.49929567,3107.3,3106.7,6.51270174]
[1767419081900,0.001,3107.3,3106.8,2.44889022]
[1767419082108,0.001,3107.5,3107.0,2.44889022]
[1767419082886,0.001,3107.3,3107.0,2.44889022]
[1767419083087,0.001,3107.3,3107.1,0.24488902]
[1767419089122,0.001,3107.5,3107.1,5.9121991]
[1767419090419,0.001,3107.5,3107.1,2.69377924]
[1767419090918,0.001,3107.5,3107.1,5.91219556]
[1767419091415,0.001,3107.5,3107.1,2.69377924]
[1767419091723,0.001,3107.5,3107.1,5.91221157]
[1767419092122,0.001,3107.5,3107.1,2.69377924]
[1767419094229,2.49929567,3107.5,3106.9,0.002]
[1767419095903,2.49829567,3107.3,3106.9,0.002]
[1767419099838,0.001,3107.5,3106.9,2.36795939]
[1767419100035,0.001,3107.5,3107.0,2.36595939]
[1767419102125,0.001,3107.5,3107.0,5.5844918]
[1767419102321,0.001,3107.5,3107.1,0.55864918]
[1767419102524,0.001,3107.5,3107.0,2.36595939]
[1767419103406,2.45956446,3107.4,3106.9,0.001]
[1767419103604,0.846,3107.5,3106.9,0.001]
[1767419103605,2.45956446,3107.2,3106.9,0.001]
[1767419105540,2.45956446,3107.2,3106.6,0.002]
[1767419105712,3.21853878,3107.0,3106.6,0.002]
[1767419106033,5.67804012,3107.1,3106.6,0.002]
[1767419106607,2.45956446,3107.0,3106.6,0.002]
[1767419107009,2.45956446,3107.0,3106.6,0.001]
[1767419108037,2.45956446,3106.9,3106.0,0.002]
[1767419108239,2.70552091,3106.9,3106.0,3.22156103]
[1767419108441,2.70552091,3106.9,3106.1,2.36595939]
[1767419108840,2.45956446,3106.8,3106.0,0.002]
[1767419109241,2.45956446,3106.8,3106.0,2.36795939]
[1767419109432,0.27055209,3106.7,3106.0,2.36795939]
[1767419109636,3.48949955,3106.7,3106.1,2.36595939]
[1767419109832,3.48949955,3106.7,3106.0,0.002]
[1767419109833,2.45956446,3106.6,3106.0,0.002]
[1767419110344,6.70844701,3106.7,3106.0,2.36795939]
[1767419110751,6.70844701,3106.7,3106.0,0.002]
[1767419110947,0.6708447,3106.6,3106.0,0.002]
[1767419111644,2.45956446,3106.5,3106.0,0.002]
[1767419111814,2.45956446,3106.3,3105.9,0.002]
[1767419112749,2.45956446,3106.2,3105.9,0.002]
[1767419112950,2.45956446,3106.0,3105.9,0.002]
[1767419113726,5.67913947,3106.0,3105.9,0.002]
[1767419113917,8.89871448,3106.0,3105.7,1e-08]
[1767419115745,3.21978234,3105.8,3105.7,1e-08]
[1767419116549,5.67927729,3105.9,3105.7,1e-08]
[1767419116726,6.62088274,3105.9,3105.7,1e-08]
[1767419118050,4.16131828,3105.9,3105.7,1e-08]
[1767419123654,3.21959723,3106.0,3105.7,1e-08]
[1767419123952,3.21959723,3106.0,3105.7,2.3659594]
[1767419124456,2.45956446,3106.5,3105.7,2.3659594]
[1767419124650,3.30456446,3106.5,3105.7,2.3659594]
[1767419124845,3.21918752,3106.4,3105.7,2.3659594]
[1767419126259,4.01460376,3106.4,3105.7,2.3659594]
[1767419126457,3.21909623,3106.5,3105.9,2.36595939]
[1767419127155,3.88982509,3106.6,3105.9,2.36595939]
[1767419127674,3.21898039,3106.6,3105.9,2.36595939]
[1767419127831,2.45956446,3106.9,3106.2,2.36595939]
[1767419127832,3.21884764,3106.8,3106.2,2.36595939]
[1767419129332,6.43707756,3107.0,3106.2,2.36595939]
[1767419132746,3.21943035,3107.2,3106.5,2.27578994]
[1767419133842,3.21943035,3107.2,3106.6,2.27578994]
[1767419134741,0.001,3107.2,3106.6,2.27578994]
[1767419134964,0.001,3107.2,3106.7,2.27578994]
[1767419136270,0.001,3107.2,3106.8,2.27578994]
[1767419137665,0.001,3107.2,3106.9,2.27578994]
[1767419142047,0.001,3107.2,3106.7,2.27578994]
[1767419142963,2.49262456,3107.2,3106.0,2.27478994]
[1767419143274,5.71102402,3107.2,3106.2,2.27578994]
[1767419144547,8.92942348,3107.2,3106.2,2.27578994]
[1767419144751,2.49162456,3107.1,3106.1,8.94241165]
[1767419145474,2.49162456,3107.0,3106.1,6.66662171]
[1767419145648,2.49162456,3107.0,3106.2,0.75116217]
[1767419146775,2.49162456,3107.0,3106.2,0.78335584]
[1767419148479,2.49162456,3107.0,3106.3,6.43852814]
[1767419149972,3.21935918,3107.2,3106.4,2.27578994]
[1767419151288,3.21935918,3107.2,3106.5,2.27578994]
[1767419151474,4.00004917,3107.2,3106.5,2.27578994]
[1767419151655,7.21843896,3107.2,3106.5,2.27578994]
[1767419152054,9.71006352,3107.2,3106.5,2.27578994]
[1767419154689,6.49167373,3107.2,3106.5,2.27578994]
[1767419155090,4.00004917,3107.2,3106.5,2.27578994]
[1767419155689,0.001,3107.2,3106.6,2.27578994]
[1767419157885,0.001,3107.2,3106.7,2.27578994]
[1767419161476,0.001,3107.2,3106.5,3.20671753]
[1767419161802,2.30870156,3107.2,3106.5,3.20671753]
[1767419162380,5.5270949,3107.2,3106.6,2.36171753]
[1767419163611,8.74548824,3107.2,3106.6,2.36171753]
[1767419163974,5.5270949,3107.2,3106.6,2.36171753]
[1767419167001,0.001,3107.2,3106.7,2.36171753]
[1767419167200,0.001,3107.2,3106.8,2.36171753]
[1767419168109,3.21902691,3107.5,3107.0,2.36171753]
[1767419168476,0.001,3107.5,3107.0,2.36171753]
[1767419172803,3.21902091,3107.5,3107.0,2.36171753]
[1767419174004,0.001,3107.5,3107.1,2.36171753]
[1767419174208,0.001,3107.5,3107.3,2.36171753]
[1767419177516,0.001,3107.5,3107.1,2.36171753]
[1767419178116,0.001,3107.5,3106.9,2.36171753]
[1767419178987,0.001,3107.5,3106.9,5.58034596]
[1767419179209,0.001,3107.5,3107.0,2.91975213]
[1767419184385,0.001,3107.5,3107.0,2.92175213]
[1767419187909,0.001,3107.5,3107.0,2.36371753]
[1767419188521,2.30870156,3107.5,3107.0,0.002]
[1767419189410,2.40462431,3107.3,3107.0,0.002]
[1767419190800,3.21812447,3107.4,3107.0,0.002]
[1767419191724,0.001,3107.5,3107.0,2.34492459]
[1767419191925,2.34078716,3107.4,3107.0,0.23649246]
[1767419192101,0.001,3107.5,3107.1,2.34292459]
[1767419192620,0.001,3107.5,3107.0,0.002]
[1767419193127,5.55985311,3107.5,3107.0,0.002]
[1767419193424,2.34078716,3107.4,3107.0,0.002]
[1767419193616,2.34078716,3107.3,3107.0,0.002]
[1767419194593,2.34078716,3107.2,3106.5,0.002]
[1767419195207,2.34078716,3107.2,3106.5,0.0007487]
[1767419196326,2.34078716,3107.0,3106.5,0.0007487]
[1767419198630,5.55936033,3107.0,3106.5,0.0007487]
[1767419198821,2.34078716,3106.9,3106.5,0.0007487]
[1767419200934,5.55943559,3106.9,3106.5,0.0007487]
[1767419203035,2.34078716,3106.8,3106.5,0.0007487]
[1767419205535,3.21865453,3106.9,3106.5,0.0007487]
[1767419205831,5.55944169,3106.9,3106.5,0.0007487]
[1767419207037,2.34078716,3106.8,3106.5,0.0007487]
[1767419209103,2.34078716,3106.7,3106.5,0.0007487]
[1767419213033,3.21881689,3106.8,3106.5,0.0007487]
[1767419214116,3.21881689,3106.8,3106.5,2.34367329]
[1767419214322,4.09646935,3106.9,3106.5,2.34367329]
[1767419214619,0.87778866,3106.9,3106.5,2.34367329]
[1767419214834,3.2185815,3107.0,3106.5,2.34367329]
[1767419215336,3.21836125,3107.2,3106.5,2.34367329]
[1767419217314,3.21836125,3107.2,3106.6,2.34292459]
[1767419220544,6.4367225,3107.2,3106.6,2.34292459]
[1767419220837,3.21836125,3107.2,3106.6,2.34292459]
[1767419221022,4.18398278,3107.2,3106.6,2.34292459]
[1767419230066,4.18498278,3107.2,3106.6,2.34292459]
[1767419231469,0.001,3107.2,3106.7,5.00470711]
[1767419231763,0.001,3107.2,3106.8,2.32225018]
[1767419231940,0.001,3107.3,3106.8,2.29006273]
[1767419232139,0.001,3107.3,3106.9,2.29006273]
[1767419239176,0.001,3107.3,3107.0,2.29006273]
[1767419239469,0.001,3107.5,3107.0,2.29006273]
[1767419239470,0.001,3107.5,3107.2,2.29006273]
[1767419250474,0.001,3107.6,3107.2,2.29006273]
[1767419250772,0.001,3107.6,3107.3,2.44457922]
[1767419250972,0.001,3107.6,3107.3,2.41239694]
[1767419251372,3.21860674,3107.9,3107.3,2.41239694]
[1767419251546,3.21860674,3107.9,3107.4,3.24693271]
[1767419251980,3.21860674,3107.9,3107.5,2.41239694]
[1767419253286,0.001,3107.9,3107.3,2.41239694]
[1767419253580,0.001,3107.6,3107.3,2.41239694]
[1767419253782,0.001,3107.6,3107.3,2.97547614]
[1767419254355,0.001,3107.9,3107.5,2.41239694]
[1767419254551,0.001,3108.3,3107.8,2.41239694]
[1767419254766,3.21821346,3108.3,3107.8,2.41239694]
[1767419255082,2.33665157,3108.3,3107.6,2.41239694]
[1767419255273,5.55388008,3108.3,3107.7,0.24123969]
[1767419255969,2.33565157,3108.2,3107.7,0.24123969]
[1767419256473,2.33565157,3108.2,3107.7,3.45905108]
[1767419257486,0.001,3108.3,3107.8,2.41239694]
[1767419257784,0.001,3108.3,3107.8,5.12704132]
[1767419257984,0.001,3108.3,3107.9,0.85860924]
[1767419258184,0.001,3108.3,3107.9,3.27100618]
[1767419258684,0.001,3108.4,3107.9,3.27100618]
[1767419259058,0.001,3108.4,3108.0,2.41239694]
[1767419259459,0.001,3108.6,3108.2,2.41239694]
[1767419259659,0.001,3108.6,3108.2,2.41113423]
[1767419260387,0.001,3108.6,3108.2,2.40988622]
[1767419260884,0.001,3108.3,3108.2,2.40988622]
[1767419261559,0.001,3108.3,3108.0,2.41239694]
[1767419261785,0.001,3108.3,3108.0,3.33272829]
[1767419263277,0.001,3108.3,3107.9,3.21760246]
[1767419263890,0.001,3108.6,3107.9,5.6299994]
[1767419264187,0.001,3108.6,3108.0,2.41239694]
[1767419266485,0.001,3108.8,3108.1,3.25639694]
[1767419266688,0.001,3108.8,3108.2,2.41239694]
[1767419266862,0.001,3108.8,3108.3,0.32885709]
[1767419267382,0.001,3108.8,3108.3,2.74125403]
[1767419268390,0.001,3108.8,3108.4,2.41239694]
[1767419269176,0.001,3108.6,3108.4,2.41239694]
[1767419269413,0.001,3108.8,3108.4,2.41239694]
[1767419270272,0.001,3108.8,3108.4,3.00823935]
[1767419270883,0.001,3108.9,3108.4,3.00823935]
[1767419271795,0.001,3108.9,3108.4,6.22531061]
[1767419274170,0.001,3108.9,3108.5,2.41239694]
[1767419274475,2.33565157,3109.2,3108.4,0.59584241]
[1767419274668,2.65727017,3109.2,3108.3,3.21713695]
[1767419274874,2.33565157,3109.2,3108.3,3.21713695]
[1767419276196,2.33565157,3109.2,3108.3,3.21712692]
[1767419276400,2.33565157,3109.2,3108.4,0.002]
[1767419276775,2.33665157,3108.9,3108.4,0.002]
[1767419277077,2.33665157,3108.9,3108.4,0.56516828]
[1767419279479,2.27409547,3108.8,3108.4,0.56516828]
[1767419280798,2.27409547,3108.8,3108.4,3.78224482]
[1767419281499,0.001,3108.9,3108.4,3.78224482]
[1767419282806,5.49050261,3109.1,3108.4,3.78224482]
[1767419282807,2.27409547,3109.1,3108.4,6.07242502]
[1767419282991,2.27409547,3109.1,3108.5,0.92895933]
[1767419283598,5.49047428,3109.1,3108.5,0.92895933]
[1767419284821,0.001,3108.8,3108.5,0.92895933]
[1767419285112,5.49047428,3109.1,3108.5,0.92895933]
[1767419285414,5.49018118,3109.4,3108.6,2.2901802]
[1767419285583,3.21615797,3109.3,3108.6,2.99030723]
[1767419286084,6.43231594,3109.3,3108.6,2.99030723]
[1767419287703,3.21615797,3109.3,3108.6,2.99030723]
[1767419289718,3.21615797,3109.3,3108.7,2.2901802]
[1767419290629,2.27409547,3109.4,3108.8,2.32234695]
[1767419290784,2.27409547,3109.5,3108.6,2.99030723]
[1767419290981,2.27409547,3109.5,3108.5,0.844]
[1767419291209,2.27409547,3109.5,3108.4,2.2921802]
[1767419291415,2.35767794,3109.5,3108.4,3.1361802]
[1767419291820,2.27409547,3109.3,3108.5,3.21697867]
[1767419292117,2.27409547,3109.3,3108.5,6.46619365]
[1767419292318,2.27509547,3109.3,3108.5,6.46619365]
[1767419293813,5.49131617,3109.3,3108.5,6.46619365]
[1767419297634,32.49131617,3109.3,3108.5,6.46619365]
[1767419302708,32.49131617,3109.3,3108.6,2.2901802]
[1767419308931,2.36054751,3109.2,3108.6,2.2901802]
[1767419310434,5.57684701,3109.2,3108.6,2.2901802]
[1767419312137,27.001,3109.3,3108.7,2.48454075]
[1767419312339,27.001,3109.3,3108.7,5.70128864]
[1767419312536,27.001,3109.3,3108.8,0.57012886]
[1767419313434,27.001,3109.3,3108.8,3.05466961]
[1767419314339,27.001,3109.3,3108.8,6.27133532]
[1767419314540,27.001,3109.3,3108.9,2.48454075]
[1767419319037,27.001,3109.3,3109.0,2.48454075]
[1767419319340,27.001,3109.3,3109.1,3.05465129]
[1767419321136,21.10368494,3109.3,3109.2,2.48454075]
[1767419321321,21.05627916,3109.3,3109.2,2.48454075]
[1767419322320,14.93223154,3109.3,3109.2,2.48454075]
[1767419322528,1e-08,3109.3,3109.2,3.03936127]
[1767419323142,0.001,3109.6,3109.3,2.48454075]
[1767419324040,2.37505316,3109.9,3109.2,0.55482052]
[1767419324833,0.001,3109.3,3109.2,0.55482052]
[1767419327333,3.21564087,3109.8,3109.2,3.03936127]
[1767419327530,3.21564087,3109.8,3109.3,0.03216157]
[1767419327739,3.21564087,3109.8,3109.2,2.48454075]
[1767419328650,2.37405316,3109.7,3109.0,0.844]
[1767419328858,2.37405316,3109.7,3109.0,3.32854075]
[1767419329652,2.37405316,3109.5,3108.8,0.57012886]
[1767419329953,3.21584769,3109.6,3108.7,2.48454075]
[1767419329954,2.37405316,3109.3,3108.7,2.48454075]
[1767419331325,3.21626141,3109.2,3108.7,2.48454075]
[1767419331750,3.21626141,3109.2,3108.9,0.002]
[1767419333238,5.59025293,3109.3,3108.9,0.002]
[1767419334858,3.21619977,3109.3,3108.9,0.002]
[1767419335355,3.21609606,3109.4,3108.9,0.002]
[1767419337258,5.59004848,3109.5,3108.9,0.002]
[1767419337560,5.59004848,3109.5,3108.9,2.48654075]
[1767419339959,3.21585918,3109.6,3108.9,2.73519483]
[1767419340164,3.21676609,3109.7,3109.0,2.38425014]
[1767419340858,0.001,3109.4,3109.0,2.38425014]
[1767419342337,0.001,3109.4,3109.2,2.35208546]
[1767419343963,0.001,3109.4,3109.1,5.56845032]
[1767419344131,0.001,3109.4,3109.2,0.96288956]
[1767419344331,0.001,3109.4,3109.2,3.31497502]
[1767419344537,0.001,3109.4,3109.2,6.53120463]
[1767419345843,0.001,3109.4,3109.3,2.35208546]
[1767419347553,0.001,3109.7,3109.3,2.35208546]
[1767419347748,0.001,3109.7,3109.5,2.35208546]
[1767419349847,0.001,3109.7,3109.5,5.56803056]
[1767419350870,0.001,3109.7,3109.6,2.35208546]
[1767419351565,0.001,3109.7,3109.5,0.844]
[1767419356783,0.001,3109.7,3109.4,1.50033672]
[1767419356983,0.001,3109.7,3109.5,0.70685086]
[1767419363787,0.001,3109.7,3109.4,0.844]
[1767419363989,0.001,3109.7,3109.4,4.06005089]
[1767419364590,0.001,3109.7,3109.4,0.844]
[1767419365391,0.001,3109.7,3109.4,3.19608546]
[1767419365596,0.001,3109.7,3109.4,6.41213964]
[1767419365889,0.001,3109.7,3109.4,7.37497958]
[1767419366667,0.001,3109.7,3109.5,2.35208546]
[1767419371495,0.001,3109.7,3109.4,1.80883994]
[1767419371705,0.001,3109.7,3109.4,0.846]
[1767419372600,0.001,3109.7,3109.4,4.06204968]
[1767419375270,0.001,3109.7,3109.4,6.53716985]
[1767419377277,0.001,3109.7,3109.5,2.47512017]
[1767419377530,0.001,3109.7,3109.5,3.45045236]
[1767419377685,0.001,3109.7,3109.6,2.47512017]
[1767419381222,0.001,3109.7,3109.6,5.69096786]
[1767419381379,0.001,3109.7,3109.6,2.47512017]
[1767419381587,0.001,3109.9,3109.7,2.47512017]
[1767419381783,0.001,3109.9,3109.8,2.47512017]
[1767419382035,0.001,3110.1,3109.9,2.47512017]
[1767419388931,0.001,3110.1,3110.0,0.03215434]
[1767419389338,0.001,3110.2,3110.0,2.50727451]
[1767419391233,2.3312265,3110.2,3109.7,0.66662953]
[1767419391433,2.3312265,3110.2,3109.4,3.21797995]
[1767419391841,2.3312265,3110.2,3109.5,0.844]
[1767419392208,2.3312265,3110.2,3109.5,4.05995067]
[1767419392406,2.3312265,3110.2,3109.6,0.844]
[1767419393735,2.3302265,3110.1,3109.4,3.24544535]
[1767419393930,2.3302265,3110.1,3109.5,1.41605655]
[1767419395439,2.3302265,3110.0,3109.5,1.41605655]
[1767419396633,2.3302265,3110.0,3109.5,0.844]
[1767419399421,2.3312265,3110.0,3109.5,0.844]
[1767419401442,0.001,3110.0,3109.6,2.47926938]
[1767419401751,0.001,3110.0,3109.7,2.47926938]
[1767419401941,0.001,3110.0,3109.7,3.45476735]
[1767419402326,0.001,3110.0,3109.8,2.47926938]
[1767419404435,0.001,3110.0,3109.5,2.47926938]
[1767419404747,0.001,3110.0,3109.6,0.844]
[1767419406966,2.40865212,3110.0,3109.4,0.002]
[1767419407125,2.40865212,3110.0,3109.5,0.844]
[1767419410355,5.62409659,3110.0,3109.5,0.844]
[1767419412246,2.40865212,3110.0,3109.5,0.844]
[1767419415321,2.40765212,3109.9,3109.4,0.002]
[1767419415537,2.40765212,3109.9,3109.5,0.844]
[1767419416846,5.62321182,3109.9,3109.5,0.844]
[1767419418147,2.40765212,3109.9,3109.5,0.844]
[1767419419145,0.001,3110.0,3109.5,0.844]
[1767419422657,3.21643408,3110.0,3109.5,0.844]
[1767419428672,2.40765212,3109.9,3109.5,0.844]
[1767419429180,2.40765212,3109.9,3109.4,0.002]
[1767419429597,2.40765212,3109.9,3109.5,0.844]
[1767419430383,5.6232877,3109.9,3109.5,0.844]
[1767419435887,8.83892328,3109.9,3109.5,0.844]
[1767419436187,2.47912597,3109.8,3109.4,0.846]
[1767419436692,2.47912597,3109.8,3109.4,1e-08]
[1767419436889,3.21574428,3109.7,3109.4,1e-08]
[1767419437089,3.21574428,3109.7,3109.1,0.002]
[1767419437682,3.21574428,3109.7,3109.1,2.47403259]
[1767419441397,3.21574428,3109.7,3109.1,3.2160642]
[1767419441796,3.21574428,3109.7,3109.2,2.47203259]
[1767419443371,0.001,3110.0,3109.2,2.47203259]
[1767419456727,8.91099413,3110.0,3109.2,2.47203259]
[1767419457016,2.70954414,3109.9,3109.2,2.47203259]
[1767419457218,3.95599797,3109.9,3109.2,2.47203259]
[1767419458816,3.95599797,3109.9,3108.4,0.002]
[1767419458817,2.47912597,3109.4,3108.4,0.002]
[1767419459025,2.70954414,3108.9,3108.5,2.47403259]
[1767419461417,3.21667524,3108.8,3108.5,2.47403259]
[1767419463316,3.21647181,3109.0,3108.5,2.47403259]
[1767419465129,6.43302208,3109.0,3108.5,2.47403259]
[1767419466310,3.21647181,3109.0,3108.5,2.47403259]
[1767419467328,6.43302208,3109.0,3108.5,2.47403259]
[1767419467529,7.5951913,3109.0,3108.5,2.47403259]
[1767419470227,3.21647181,3109.0,3108.5,2.47403259]
[1767419473236,6.43264886,3109.2,3108.5,2.47403259]
[1767419475234,3.21615797,3109.3,3108.6,2.45550617]
[1767419475833,0.001,3109.0,3108.6,2.45550617]
[1767419476034,0.001,3109.0,3108.8,2.45550617]
[1767419477127,3.20885569,3109.6,3109.2,2.45550617]
[1767419477327,4.0597662,3109.7,3109.2,2.45550617]
[1767419477328,0.844,3109.7,3109.2,2.45550617]
[1767419479739,3.21584769,3109.6,3109.2,2.45550617]
[1767419482544,6.43269538,3109.6,3109.2,2.45550617]
[1767419482841,7.16036492,3109.6,3109.2,2.45550617]
[1767419483043,3.94451723,3109.6,3109.2,2.45550617]
[1767419484753,3.21684769,3109.6,3109.2,2.45550617]
[1767419486528,0.001,3109.6,3109.2,2.45550617]
[1767419489434,0.001,3109.6,3108.8,2.37333682]
[1767419489816,2.40523957,3109.2,3108.5,0.002]
[1767419490017,2.91671794,3109.1,3108.5,0.002]
[1767419490234,5.11478371,3109.0,3108.4,0.002]
[1767419490428,2.40523957,3108.9,3108.4,0.002]
[1767419490726,3.21667524,3108.8,3108.4,0.002]
[1767419491314,6.43335048,3108.8,3108.4,0.002]
[1767419491528,9.72244906,3108.8,3108.4,0.002]
[1767419493650,6.50577382,3108.8,3108.4,0.002]
[1767419495652,9.72244906,3108.8,3108.4,0.002]
[1767419504764,9.72344906,3108.8,3108.4,0.002]
[1767419507368,9.72344906,3108.8,3108.2,2.37333682]
[1767419508766,12.4329932,3108.8,3108.2,2.37333682]
[1767419509560,7.31820949,3108.8,3108.2,2.37333682]
[1767419509740,6.43435048,3108.8,3108.2,2.37333682]
[1767419510860,0.001,3108.8,3108.2,2.37333682]
[1767419515968,6.43435048,3108.8,3108.2,2.37333682]
[1767419520074,0.001,3108.8,3108.2,2.37333682]
[1767419520592,0.001,3108.8,3108.3,2.32809555]
[1767419520751,3.21629099,3109.2,3108.8,2.32809555]
[1767419521446,6.43258198,3109.2,3108.8,2.32809555]
[1767419525576,3.21629099,3109.2,3108.8,2.32809555]
[1767419525747,7.27590222,3109.5,3108.8,2.32809555]
[1767419525946,0.001,3109.2,3108.8,2.32809555]
[1767419526176,0.001,3109.2,3108.8,2.56090511]
[1767419527378,0.001,3109.2,3108.8,2.32809555]
[1767419527578,3.21595111,3109.5,3109.2,2.32809555]
[1767419529087,6.43190222,3109.5,3108.6,3.21683617]
[1767419529375,3.21595111,3109.5,3108.7,2.32809555]
[1767419532791,2.39900405,3109.4,3108.5,3.96915204]
[1767419532954,2.39900405,3109.4,3108.5,4.0317577]